[Event "SixDays Budapest GM-A 09-2024"]
[Site "Budapest"]
[Date "2024.09.27"]
[Round "1"]
[White "Plat, Vojtech"]
[Black "Wachinger, Nikolas"]
[Result "1/2-1/2"]
[ECO "B22"]
[WhiteElo "2483"]
[BlackElo "2442"]
[Annotator "ChessBase"]
[PlyCount "110"]
[EventDate "2024.09.24"]
[EventType "tourn"]
[EventCountry "HUN"]
[SourceTitle "playchess.com"]
[Source "ChessBase"]
[SourceQuality "1"]
[TimeControl "5400+30"]

1. e4 {[%emt 0:00:02]} c5 {[%emt 0:05:19]} 2. c3 {[%emt 0:00:02]} Nf6 {[%emt 0:00:07]} 3. e5 {[%emt 0:00:03]} Nd5 {[%emt 0:00:05]} 4. Nf3 {[%emt 0:00:04]} d6 {[%emt 0:00:07]} 5. d4 {[%emt 0:00:45]} cxd4 {[%emt 0:00:07]} 6. Qxd4 {[%emt 0:01:11]} e6 {[%emt 0:00:10]} 7. exd6 {[%emt 0:00:18]} Nc6 {[%emt 0:00:12]} 8. Bb5 {[%emt 0:00:42]} Bd7 {[%emt 0:00:10]} 9. Bxc6 {[%emt 0:02:24]} Bxc6 {[%emt 0:00:15]} 10. O-O {[%emt 0:01:36]} Qxd6 {[%emt 0:05:06]} 11. Ne5 {[%emt 0:04:24]} f6 {[%emt 0:00:19]} 12. Nxc6 {[%emt 0:00:29]} Qxc6 {[%emt 0:00:07]} 13. Nd2 {[%emt 0:00:59]} Bc5 {[%emt 0:08:43]} 14. Qg4 {[%emt 0:01:39]} O-O-O {[%emt 0:06:54]} 15. Nb3 {[%emt 0:00:39]} h5 {[%emt 0:04:02]} 16. Qe2 {[%emt 0:01:49]} Bb6 {[%emt 0:04:27]} 17. a4 {[%emt 0:01:24]} a6 {[%emt 0:00:43]} 18. c4 {[%emt 0:09:47]} Nb4 {[%emt 0:01:30]} 19. c5 {[%emt 0:00:11]} Bc7 {[%emt 0:00:49]} 20. Be3 {[%emt 0:07:04]} e5 {[%emt 0:04:57]} 21. Rfd1 {[%emt 0:01:34]} Rxd1+ {[%emt 0:12:31]} 22. Qxd1 {[%emt 0:01:06]} Rd8 {[%emt 0:05:40]} 23. Qxh5 {[%emt 0:00:49]} Qe6 {[%emt 0:00:10]} 24. Nc1 {[%emt 0:15:14]} Nc2 {[%emt 0:05:48]} 25. Rb1 {[%emt 0:00:17]} g6 {[%emt 0:10:14]} 26. Qe2 {[%emt 0:00:17]} Qf5 {[%emt 0:02:24]} 27. g4 {[%emt 0:01:28]} Qe4 {[%emt 0:01:16]} 28. Bh6 {[%emt 0:00:05]} Ne3 {[%emt 0:00:15]} 29. Bxe3 {[%emt 0:00:15]} Qxb1 {[%emt 0:00:08]} 30. c6 {[%emt 0:00:02]} Qe4 {[%emt 0:05:17]} 31. cxb7+ {[%emt 0:00:04]} Kxb7 {[%emt 0:00:29]} 32. Nb3 {[%emt 0:01:09]} Bb6 {[%emt 0:00:03]} 33. a5 {[%emt 0:00:34]} Ba7 {[%emt 0:02:32]} 34. Nd2 {[%emt 0:00:51]} Qd5 {[%emt 0:02:23]} 35. Nf1 {[%emt 0:00:56]} Bxe3 {[%emt 0:06:20]} 36. Qxe3 {[%emt 0:01:20]} Rd6 {[%emt 0:01:05]} 37. Qa3 {[%emt 0:00:59]} Ka7 {[%emt 0:04:04]} 38. Ne3 {[%emt 0:00:41]} Qc6 {[%emt 0:00:02]} 39. Qb3 {[%emt 0:04:10]} Rd7 {[%emt 0:01:12]} 40. h4 {[%emt 0:00:36]} Rh7 {[%emt 0:01:18]} 41. Ng2 {[%emt 0:07:01]} Rb7 {[%emt 0:00:01]} 42. Qd3 {[%emt 0:00:58]} Qc1+ {[%emt 0:02:05]} 43. Kh2 {[%emt 0:00:01]} Qxb2 {[%emt 0:00:14]} 44. Qf3 {[%emt 0:00:22]} Rf7 {[%emt 0:02:15]} 45. Qd5 {[%emt 0:01:02]} Qb7 {[%emt 0:00:18]} 46. Qc5+ {[%emt 0:00:12]} Ka8 {[%emt 0:00:01]} 47. Ne3 {[%emt 0:00:10]} Rc7 {[%emt 0:00:54]} 48. Qf8+ {[%emt 0:00:07]} Ka7 {[%emt 0:00:01]} 49. Qxf6 {[%emt 0:00:11]} Rf7 {[%emt 0:00:11]} 50. Qxe5 {[%emt 0:00:46]} Rxf2+ {[%emt 0:00:05]} 51. Kg1 {[%emt 0:00:04]} Rf3 {[%emt 0:01:56]} 52. Qd4+ {[%emt 0:02:15]} Kb8 {[%emt 0:00:30]} 53. Qd8+ {[%emt 0:05:39]} Ka7 {[%emt 0:00:14]} 54. Qd4+ {[%emt 0:00:11]} Kb8 {[%emt 0:00:02]} 55. Qd8+ {[%emt 0:00:05]} Ka7 {[%emt 0:00:53]} 1/2-1/2

[Event "SixDays Budapest GM-A 09-2024"]
[Site "Budapest"]
[Date "2024.09.27"]
[Round "1"]
[White "Nagy, Gabor"]
[Black "Defromont, Benjamin"]
[Result "1-0"]
[ECO "A48"]
[WhiteElo "2459"]
[BlackElo "2383"]
[Annotator "ChessBase"]
[PlyCount "139"]
[EventDate "2024.09.24"]
[EventType "tourn"]
[EventCountry "HUN"]
[SourceTitle "playchess.com"]
[Source "ChessBase"]
[SourceQuality "1"]
[TimeControl "5400+30"]

1. Nf3 {[%emt 0:00:08]} Nf6 {[%emt 0:05:34]} 2. d4 {[%emt 0:00:23]} g6 {[%emt 0:00:13]} 3. Nbd2 {[%emt 0:00:18]} Bg7 {[%emt 0:03:57]} 4. e4 {[%emt 0:00:50]} d6 {[%emt 0:00:03]} 5. Bb5+ {[%emt 0:00:20]} Nc6 {[%emt 0:10:29]} 6. Qe2 {[%emt 0:08:18]} O-O {[%emt 0:03:53]} 7. e5 {[%emt 0:01:16]} dxe5 {[%emt 0:01:50]} 8. dxe5 {[%emt 0:00:32]} Nd5 {[%emt 0:04:24]} 9. O-O {[%emt 0:01:45]} Nb6 {[%emt 0:10:45]} 10. Bxc6 {[%emt 0:03:53]} bxc6 {[%emt 0:00:05]} 11. Rd1 {[%emt 0:00:25]} Be6 {[%emt 0:15:10]} 12. Ne4 {[%emt 0:02:50]} Qc8 {[%emt 0:00:17]} 13. Nd4 {[%emt 0:05:43]} Bc4 {[%emt 0:02:17]} 14. Qe1 {[%emt 0:00:32]} Bd5 {[%emt 0:00:25]} 15. Nc5 {[%emt 0:03:57]} Nd7 {[%emt 0:10:26]} 16. Nxd7 {[%emt 0:01:40]} Qxd7 {[%emt 0:00:08]} 17. h3 {[%emt 0:01:18]} Rfd8 {[%emt 0:02:34]} 18. Bg5 {[%emt 0:00:21]} f6 {[%emt 0:01:24]} 19. Bf4 {[%emt 0:02:35]} c5 {[%emt 0:04:53]} 20. exf6 {[%emt 0:02:51]} Bxf6 {[%emt 0:02:58]} 21. Nf3 {[%emt 0:06:58]} Qf5 {[%emt 0:03:46]} 22. Bxc7 {[%emt 0:04:42]} Rdc8 {[%emt 0:05:10]} 23. Bg3 {[%emt 0:05:33]} Bxb2 {[%emt 0:00:17]} 24. Rxd5 {[%emt 0:06:08]} Qxd5 {[%emt 0:00:05]} 25. Rd1 {[%emt 0:00:06]} Qxa2 {[%emt 0:03:42]} 26. Qxe7 {[%emt 0:00:26]} Qf7 {[%emt 0:01:57]} 27. Qe4 {[%emt 0:00:21]} Re8 {[%emt 0:00:29]} 28. Qa4 {[%emt 0:00:43]} Rad8 {[%emt 0:00:41]} 29. Rxd8 {[%emt 0:00:59]} Rxd8 {[%emt 0:02:30]} 30. Ng5 {[%emt 0:00:02]} Qd5 {[%emt 0:00:19]} 31. Qxa7 {[%emt 0:00:54]} Bg7 {[%emt 0:01:15]} 32. Qe7 {[%emt 0:01:14]} Qd7 {[%emt 0:02:17]} 33. Qxc5 {[%emt 0:00:24]} Rc8 {[%emt 0:00:05]} 34. Qe3 {[%emt 0:01:45]} Rc3 {[%emt 0:01:44]} 35. Qe4 {[%emt 0:01:46]} h6 {[%emt 0:00:59]} 36. Ne6 {[%emt 0:00:58]} Qd1+ {[%emt 0:00:57]} 37. Kh2 {[%emt 0:00:05]} Qxc2 {[%emt 0:00:08]} 38. Qd5 {[%emt 0:02:16]} Rd3 {[%emt 0:00:50]} 39. Qa8+ {[%emt 0:00:56]} Kf7 {[%emt 0:00:30]} 40. Nxg7 {[%emt 0:04:54]} Kxg7 {[%emt 0:00:01]} 41. Qb7+ {[%emt 0:03:19]} Kf6 {[%emt 0:00:17]} 42. Qa6+ {[%emt 0:01:10]} Kf5 {[%emt 0:00:57]} 43. Qb5+ {[%emt 0:00:26]} Kf6 {[%emt 0:00:38]} 44. Qe8 {[%emt 0:03:47]} Rxg3 {[%emt 0:00:25]} 45. Qf8+ {[%emt 0:00:17]} Ke6 {[%emt 0:00:09]} 46. Kxg3 {[%emt 0:00:30]} Qc3+ {[%emt 0:00:55]} 47. Qf3 {[%emt 0:01:32]} Qc7+ {[%emt 0:00:29]} 48. Qf4 {[%emt 0:00:05]} Qg7 {[%emt 0:00:24]} 49. h4 {[%emt 0:01:32]} Kd5 {[%emt 0:00:28]} 50. f3 {[%emt 0:00:29]} Ke6 {[%emt 0:00:22]} 51. Qc4+ {[%emt 0:00:20]} Kd6 {[%emt 0:00:05]} 52. Qe4 {[%emt 0:00:34]} Kc5 {[%emt 0:00:42]} 53. Qe6 {[%emt 0:00:20]} Kd4 {[%emt 0:00:51]} 54. Kg4 {[%emt 0:00:50]} Kc3 {[%emt 0:00:37]} 55. f4 {[%emt 0:02:20]} Kc2 {[%emt 0:00:25]} 56. h5 {[%emt 0:00:51]} gxh5+ {[%emt 0:00:29]} 57. Kxh5 {[%emt 0:00:10]} Qf8 {[%emt 0:00:49]} 58. g4 {[%emt 0:00:47]} Kb2 {[%emt 0:00:26]} 59. f5 {[%emt 0:01:02]} Qg7 {[%emt 0:00:34]} 60. Qxh6 {[%emt 0:00:16]} Qc3 {[%emt 0:00:25]} 61. Qb6+ {[%emt 0:00:49]} Ka1 {[%emt 0:00:10]} 62. Kg6 {[%emt 0:00:22]} Qc8 {[%emt 0:00:19]} 63. Qf6+ {[%emt 0:00:27]} Kb1 {[%emt 0:00:05]} 64. Qe6 {[%emt 0:00:15]} Qc2 {[%emt 0:00:13]} 65. g5 {[%emt 0:00:15]} Kc1 {[%emt 0:00:08]} 66. Qe1+ {[%emt 0:00:20]} Kb2 {[%emt 0:00:04]} 67. Qe5+ {[%emt 0:00:04]} Kb1 {[%emt 0:00:11]} 68. Kg7 {[%emt 0:00:15]} Qd2 {[%emt 0:01:20]} 69. f6 {[%emt 0:00:19]} Qa5 {[%emt 0:00:05]} 70. Qxa5 {[%emt 0:00:07]} 1-0

[Event "SixDays Budapest GM-A 09-2024"]
[Site "Budapest"]
[Date "2024.09.27"]
[Round "1"]
[White "Mohammad Fahad, Rahman"]
[Black "Panda Sambit"]
[Result "1-0"]
[ECO "C55"]
[WhiteElo "2419"]
[BlackElo "2367"]
[Annotator "ChessBase"]
[PlyCount "95"]
[EventDate "2024.09.24"]
[EventType "tourn"]
[EventCountry "HUN"]
[SourceTitle "playchess.com"]
[Source "ChessBase"]
[SourceQuality "1"]
[TimeControl "5400+30"]

1. e4 {[%emt 0:02:25]} e5 {[%emt 0:03:39]} 2. Nf3 {[%emt 0:00:26]} Nc6 {[%emt 0:00:06]} 3. Bc4 {[%emt 0:00:13]} Nf6 {[%emt 0:00:08]} 4. d3 {[%emt 0:01:06]} d5 {[%emt 0:00:52]} 5. exd5 {[%emt 0:00:41]} Nxd5 {[%emt 0:00:05]} 6. O-O {[%emt 0:01:39]} Nb6 {[%emt 0:00:56]} 7. Bb5 {[%emt 0:06:05]} Bd6 {[%emt 0:00:13]} 8. d4 {[%emt 0:01:53]} e4 {[%emt 0:02:29]} 9. Re1 {[%emt 0:17:24]} f5 {[%emt 0:00:41]} 10. Bg5 {[%emt 0:07:13]} Qd7 {[%emt 0:00:10]} 11. c4 {[%emt 0:00:08]} h6 {[%emt 0:28:31]} 12. Bc1 {[%emt 0:13:28]} O-O {[%emt 0:01:36]} 13. Nfd2 {[%emt 0:00:44]} Bf4 {[%emt 0:29:04]} 14. d5 {[%emt 0:04:01]} Qd6 {[%emt 0:00:30]} 15. dxc6 {[%emt 0:00:49]} Bxh2+ {[%emt 0:03:43]} 16. Kh1 {[%emt 0:01:09]} Be5 {[%emt 0:03:06]} 17. Nf1 {[%emt 0:09:58]} Qf6 {[%emt 0:01:32]} 18. c5 {[%emt 0:03:26]} bxc6 {[%emt 0:00:14]} 19. cxb6 {[%emt 0:02:31]} cxb5 {[%emt 0:00:31]} 20. bxc7 {[%emt 0:00:38]} Bb7 {[%emt 0:11:49]} 21. Nc3 {[%emt 0:02:55]} Bxc7 {[%emt 0:00:30]} 22. Qb3+ {[%emt 0:04:39]} Kh8 {[%emt 0:05:32]} 23. Nd5 {[%emt 0:00:38]} Qh4+ {[%emt 0:00:01]} 24. Kg1 {[%emt 0:00:08]} Be5 {[%emt 0:00:47]} 25. Qxb5 {[%emt 0:08:02]} Rab8 {[%emt 0:01:20]} 26. Nde3 {[%emt 0:02:58]} Qf6 {[%emt 0:01:39]} 27. Ng3 {[%emt 0:01:45]} Bc8 {[%emt 0:01:13]} 28. Qa5 {[%emt 0:01:54]} Bd4 {[%emt 0:02:15]} 29. Nd5 {[%emt 0:00:32]} Qg6 {[%emt 0:01:04]} 30. Rd1 {[%emt 0:02:42]} Bb6 {[%emt 0:00:40]} 31. Nxb6 {[%emt 0:00:17]} Rxb6 {[%emt 0:00:08]} 32. Bf4 {[%emt 0:00:23]} Qg4 {[%emt 0:00:30]} 33. Qxa7 {[%emt 0:00:33]} Rg6 {[%emt 0:00:50]} 34. Qc7 {[%emt 0:01:04]} Kh7 {[%emt 0:00:21]} 35. Bd6 {[%emt 0:02:11]} Re8 {[%emt 0:00:36]} 36. Qf7 {[%emt 0:00:42]} Rd8 {[%emt 0:00:36]} 37. Qe7 {[%emt 0:00:18]} Rd7 {[%emt 0:00:30]} 38. Qe5 {[%emt 0:00:36]} Rf6 {[%emt 0:00:25]} 39. Rd4 {[%emt 0:00:45]} h5 {[%emt 0:00:32]} 40. Nf1 {[%emt 0:00:41]} Qg6 {[%emt 0:00:32]} 41. Rad1 {[%emt 0:00:41]} Ba6 {[%emt 0:00:18]} 42. Qg3 {[%emt 0:00:23]} Qf7 {[%emt 0:00:26]} 43. Be5 {[%emt 0:00:34]} Rxd4 {[%emt 0:00:06]} 44. Rxd4 {[%emt 0:00:05]} Rg6 {[%emt 0:00:04]} 45. Qh3 {[%emt 0:00:17]} Rc6 {[%emt 0:00:48]} 46. Ng3 {[%emt 0:00:16]} f4 {[%emt 0:01:09]} 47. Nxe4 {[%emt 0:00:59]} Qg6 {[%emt 0:00:31]} 48. Bxf4 {[%emt 0:00:34]} 1-0

[Event "SixDays Budapest GM-A 09-2024"]
[Site "Budapest"]
[Date "2024.09.27"]
[Round "1"]
[White "Berczes, David"]
[Black "Lee, Junhyeok"]
[Result "1/2-1/2"]
[ECO "A48"]
[WhiteElo "2400"]
[BlackElo "2364"]
[Annotator "ChessBase"]
[PlyCount "38"]
[EventDate "2024.09.24"]
[EventType "tourn"]
[EventCountry "HUN"]
[SourceTitle "playchess.com"]
[Source "ChessBase"]
[SourceQuality "1"]
[TimeControl "5400+30"]

1. d4 {[%emt 0:10:11]} Nf6 {[%emt 0:00:09]} 2. Nf3 {[%emt 0:00:14]} g6 {[%emt 0:00:47]} 3. Nbd2 {[%emt 0:00:15]} Bg7 {[%emt 0:09:48]} 4. e4 {[%emt 0:00:23]} O-O {[%emt 0:00:11]} 5. Bd3 {[%emt 0:00:09]} d6 {[%emt 0:00:30]} 6. O-O {[%emt 0:00:07]} Nc6 {[%emt 0:01:04]} 7. c3 {[%emt 0:00:13]} e5 {[%emt 0:00:17]} 8. Re1 {[%emt 0:00:17]} h6 {[%emt 0:03:35]} 9. h3 {[%emt 0:12:22]} a5 {[%emt 0:05:36]} 10. a4 {[%emt 0:01:29]} Re8 {[%emt 0:07:24]} 11. dxe5 {[%emt 0:10:50]} Nxe5 {[%emt 0:02:04]} 12. Nxe5 {[%emt 0:02:09]} dxe5 {[%emt 0:00:26]} 13. Nc4 {[%emt 0:13:21]} Nh5 {[%emt 0:04:41]} 14. Bf1 {[%emt 0:06:48]} Nf4 {[%emt 0:01:14]} 15. Qxd8 {[%emt 0:05:25]} Rxd8 {[%emt 0:00:18]} 16. Be3 {[%emt 0:00:24]} b6 {[%emt 0:03:56]} 17. Red1 {[%emt 0:03:52]} Bb7 {[%emt 0:01:46]} 18. f3 {[%emt 0:05:39]} Rxd1 {[%emt 0:03:10]} 19. Rxd1 {[%emt 0:02:21]} Bc6 {[%emt 0:00:05]} 1/2-1/2

[Event "SixDays Budapest GM-A 09-2024"]
[Site "Budapest"]
[Date "2024.09.27"]
[Round "1"]
[White "Mamatov, Melis"]
[Black "Chen, Yining"]
[Result "1/2-1/2"]
[ECO "B12"]
[WhiteElo "2362"]
[BlackElo "2252"]
[Annotator "ChessBase"]
[PlyCount "86"]
[EventDate "2024.09.24"]
[EventType "tourn"]
[EventCountry "HUN"]
[SourceTitle "playchess.com"]
[Source "ChessBase"]
[SourceQuality "1"]
[TimeControl "5400+30"]

1. e4 {[%emt 0:00:09]} c6 {[%emt 0:00:20]} 2. d4 {[%emt 0:00:07]} d5 {[%emt 0:00:04]} 3. e5 {[%emt 0:00:06]} Bf5 {[%emt 0:00:05]} 4. h4 {[%emt 0:00:07]} a6 {[%emt 0:00:30]} 5. Nc3 {[%emt 0:01:55]} c5 {[%emt 0:03:14]} 6. dxc5 {[%emt 0:00:05]} d4 {[%emt 0:05:24]} 7. g4 {[%emt 0:00:10]} Bc8 {[%emt 0:16:03]} 8. Ne4 {[%emt 0:03:47]} Nc6 {[%emt 0:01:42]} 9. Bf4 {[%emt 0:01:55]} Qa5+ {[%emt 0:04:22]} 10. Bd2 {[%emt 0:07:16]} Qc7 {[%emt 0:00:08]} 11. f4 {[%emt 0:00:46]} h5 {[%emt 0:05:34]} 12. Bh3 {[%emt 0:08:21]} Nh6 {[%emt 0:11:01]} 13. gxh5 {[%emt 0:05:27]} b6 {[%emt 0:03:13]} 14. Qe2 {[%emt 0:01:41]} Bxh3 {[%emt 0:04:36]} 15. Rxh3 {[%emt 0:01:36]} bxc5 {[%emt 0:02:10]} 16. Nd6+ {[%emt 0:00:52]} Kd8 {[%emt 0:00:43]} 17. Nc4 {[%emt 0:02:31]} e6 {[%emt 0:00:38]} 18. Qg2 {[%emt 0:01:53]} Rb8 {[%emt 0:02:38]} 19. O-O-O {[%emt 0:09:19]} Nf5 {[%emt 0:02:15]} 20. Ne2 {[%emt 0:00:59]} Rxh5 {[%emt 0:03:01]} 21. Ng3 {[%emt 0:00:37]} Nxg3 {[%emt 0:00:26]} 22. Rxg3 {[%emt 0:00:40]} g6 {[%emt 0:01:44]} 23. Ra3 {[%emt 0:17:43]} Ke8 {[%emt 0:08:27]} 24. Rxa6 {[%emt 0:00:43]} Nb4 {[%emt 0:02:35]} 25. Bxb4 {[%emt 0:00:54]} Rxb4 {[%emt 0:00:31]} 26. Ra8+ {[%emt 0:00:35]} Ke7 {[%emt 0:02:44]} 27. Nd6 {[%emt 0:00:47]} Rb8 {[%emt 0:00:17]} 28. Rxb8 {[%emt 0:00:33]} Qxb8 {[%emt 0:00:03]} 29. Qc6 {[%emt 0:00:19]} Bh6 {[%emt 0:00:36]} 30. Kb1 {[%emt 0:08:18]} Bxf4 {[%emt 0:02:03]} 31. a4 {[%emt 0:03:20]} Bxe5 {[%emt 0:04:42]} 32. Nb5 {[%emt 0:00:01]} Bd6 {[%emt 0:03:19]} 33. Rf1 {[%emt 0:01:02]} Rd5 {[%emt 0:02:09]} 34. b3 {[%emt 0:04:28]} f5 {[%emt 0:03:37]} 35. Re1 {[%emt 0:01:00]} Kf6 {[%emt 0:00:38]} 36. a5 {[%emt 0:02:06]} c4 {[%emt 0:01:56]} 37. bxc4 {[%emt 0:00:01]} Rc5 {[%emt 0:00:06]} 38. Qd7 {[%emt 0:00:21]} Be5 {[%emt 0:00:22]} 39. Rxe5 {[%emt 0:02:48]} Qxe5 {[%emt 0:00:38]} 40. Qd8+ {[%emt 0:01:06]} Kg7 {[%emt 0:00:35]} 41. Qe7+ {[%emt 0:00:08]} Kg8 {[%emt 0:00:25]} 42. Qe8+ {[%emt 0:00:10]} Kh7 {[%emt 0:00:24]} 43. Qe7+ {[%emt 0:00:05]} Kg8 {[%emt 0:00:16]} 1/2-1/2

[Event "SixDays Budapest GM-A 09-2024"]
[Site "Budapest"]
[Date "2024.09.24"]
[Round "1.2"]
[White "Mohammad Fahad, Rahman"]
[Black "Berczes, David"]
[Result "0-1"]
[ECO "D37"]
[WhiteElo "2419"]
[BlackElo "2400"]
[Annotator "RC"]
[PlyCount "84"]
[EventDate "2024.09.24"]
[EventType "tourn"]
[EventCountry "HUN"]
[SourceTitle "playchess.com"]
[Source "ChessBase"]
[SourceQuality "1"]
[TimeControl "5400+30"]

1. d4 {[%emt 0:00:19]} d5 {[%emt 0:00:15]} 2. c4 {[%emt 0:00:13]} e6 {[%emt 0:00:10]} 3. Nc3 {[%emt 0:00:15]} Nf6 {[%emt 0:00:06]} 4. Nf3 {[%emt 0:00:10]} h6 {[%emt 0:03:26]} 5. Bf4 {[%emt 0:00:51]} c5 {[%emt 0:00:14]} 6. g3 {[%emt 0:10:46]} cxd4 {[%emt 0:27:06]} 7. Nxd4 {[%emt 0:00:58]} Nbd7 {[%emt 0:28:46]} 8. Qa4 {[%emt 0:12:47]} g5 {[%emt 0:18:04]} 9. Be5 {[%emt 0:04:13]} Bc5 {[%emt 0:01:09]} 10. cxd5 {[%emt 0:06:12]} O-O {[%emt 0:03:13]} 11. Bxf6 {[%emt 0:05:44]} Qxf6 {[%emt 0:01:23]} 12. Nf3 {[%emt 0:01:14]} exd5 {[%emt 0:08:34]} 13. Bg2 {[%emt 0:07:00]} Nb6 {[%emt 0:03:25]} 14. Qb5 {[%emt 0:01:01]} Qe7 {[%emt 0:01:03]} 15. O-O {[%emt 0:01:38]} Be6 {[%emt 0:00:34]} 16. Rad1 {[%emt 0:02:43]} Rac8 {[%emt 0:00:30]} 17. Nd4 {[%emt 0:02:24]} Qf6 {[%emt 0:00:30]} 18. Nb3 {[%emt 0:06:09]} a6 {[%emt 0:00:30]} 19. Qd3 {[%emt 0:00:08]} Bb4 {[%emt 0:00:30]} 20. Nxd5 {[%emt 0:00:37]} Nxd5 {[%emt 0:00:29]} 21. Bxd5 {[%emt 0:00:06]} Rfd8 {[%emt 0:00:32]} 22. Qe4 {[%emt 0:02:57]} Bxd5 {[%emt 0:00:27]} 23. Rxd5 {[%emt 0:00:02]} Rxd5 {[%emt 0:00:24]} 24. Qxd5 {[%emt 0:00:09]} b5 {[%emt 0:00:39]} 25. e3 {[%emt 0:11:23]} Bf8 {[%emt 0:00:30]} 26. Nd4 {[%emt 0:01:15]} Rd8 {[%emt 0:00:29]} 27. Qb7 {[%emt 0:02:55]} Bc5 {[%emt 0:00:29]} 28. Nb3 {[%emt 0:03:35]} Bf8 {[%emt 0:00:25]} 29. Nd4 {[%emt 0:04:26]} Bc5 {[%emt 0:00:14]} 30. Nc6 {[%emt 0:00:46]} Rd2 {[%emt 0:00:47]} 31. Na5 {[%emt 0:10:32]} Rxb2 {[%emt 0:00:36]} 32. Nb3 {[%emt 0:02:19]} Bf8 {[%emt 0:00:26]} 33. Qd5 {[%emt 0:00:38]} Rxa2 34. Nd4 {[%emt 0:00:13]} Rd2 {[%emt 0:00:57]} 35. f4 {[%emt 0:00:02]} g4 {[%emt 0:00:36]} 36. Rc1 {[%emt 0:01:16]} Qe7 {[%emt 0:00:16]} 37. Re1 {[%emt 0:00:17]} b4 {[%emt 0:00:44]} 38. Qc4 {[%emt 0:00:43]} Qe4 {[%emt 0:00:16]} 39. Qf1 {[%emt 0:00:29]} Bc5 {[%emt 0:00:23]} 40. Re2 {[%emt 0:00:34]} Bxd4 {[%emt 0:00:25]} 41. Rxd2 {[%emt 0:00:12]} Bxe3+ {[%emt 0:00:21]} 42. Rf2 {[%emt 0:00:08]} Qf3 {[%emt 0:00:44]} 0-1

[Event "SixDays Budapest GM-A 09-2024"]
[Site "Budapest"]
[Date "2024.09.24"]
[Round "1.3"]
[White "Mamatov, Melis"]
[Black "Wachinger, Nikolas"]
[Result "1/2-1/2"]
[ECO "B90"]
[WhiteElo "2362"]
[BlackElo "2442"]
[Annotator "TA"]
[PlyCount "110"]
[EventDate "2024.09.24"]
[EventType "tourn"]
[EventCountry "HUN"]
[SourceTitle "playchess.com"]
[Source "ChessBase"]
[SourceQuality "1"]
[TimeControl "5400+30"]

{[%evp 12,110,17,9,7,2,14,0,0,0,0,-9,0,-4,-6,-21,0,-8,0,-5,29,0,0,-7,-4,-12,-6,-3,-4,-6,0,0,0,-8,0,-8,-5,-5,0,0,0,-8,-5,-8,0,-7,-2,-15,-9,-19,-11,-27,-8,-8,-8,-8,-8,-8,-8,-8,-8,-8,-8,-8,-8,-8,-8,-8,0,-8,0,0,0,0,0,0,0,0,0,0,0,0,0,0,0,0,0,0,0,0,0,0,0,0,0,0,0,0,0,0,0]} 1. e4 {[%emt 0:00:05]} c5 {[%emt 0:00:06]} 2. Nf3 {[%emt 0:00:16]} d6 {[%emt 0:00:08]} 3. d4 {[%emt 0:00:05]} cxd4 {[%emt 0:00:08]} 4. Nxd4 {[%emt 0:00:04]} Nf6 {[%emt 0:00:11]} 5. Nc3 {[%emt 0:00:04]} a6 {[%emt 0:00:05]} 6. h3 {[%emt 0:00:15]} e5 {[%emt 0:00:08]} 7. Nb3 {[%emt 0:00:04]} Be6 {[%emt 0:00:11]} 8. Be3 {[%emt 0:00:37]} Be7 {[%emt 0:00:21]} 9. g4 {[%emt 0:00:14]} d5 {[%emt 0:00:22]} 10. exd5 {[%emt 0:01:15]} Nxd5 {[%emt 0:00:02]} 11. Nxd5 {[%emt 0:07:51]} Bxd5 {[%emt 0:10:19]} 12. Rg1 {[%emt 0:00:18]} Nc6 {[%emt 0:00:19]} 13. c3 {[%emt 0:13:40]} O-O {[%emt 0:05:29]} 14. Qd2 {[%emt 0:03:33]} Rc8 {[%emt 0:03:55]} 15. Rd1 {[%emt 0:07:02]} Bf3 {[%emt 0:07:12]} 16. Qxd8 {[%emt 0:02:13]} Rfxd8 {[%emt 0:00:52]} 17. Rxd8+ {[%emt 0:00:26]} Nxd8 {[%emt 0:03:53]} 18. Bg2 {[%emt 0:05:37]} Bxg2 {[%emt 0:01:02]} 19. Rxg2 {[%emt 0:00:02]} Ne6 {[%emt 0:08:54]} 20. Ke2 {[%emt 0:02:38]} Bg5 {[%emt 0:06:06]} 21. Rg1 {[%emt 0:12:38]} Kf8 {[%emt 0:00:57]} 22. Rd1 {[%emt 0:02:17]} Ke7 {[%emt 0:00:17] Against Rd7+} 23. Rd5 {[%emt 0:00:32]} Bxe3 {[%emt 0:05:17]} 24. fxe3 $11 {[%emt 0:05:07][%mdl 4096] Endgame. KRN-KRN} f6 {[%emt 0:00:17]} 25. Nd2 {[%emt 0:11:44]} h5 {[%emt 0:08:28]} 26. Ne4 {[%emt 0:04:02]} ({Much worse is} 26. gxh5 Rh8 27. Nc4 b5 $11 (27... Rxh5 28. Nb6 $15)) 26... hxg4 {[%emt 0:00:55]} 27. hxg4 {[%emt 0:00:01]} Rh8 {[%emt 0:00:21]} 28. Nf2 {[%emt 0:00:02]} Ng5 {[%emt 0:02:48]} 29. Rd1 {[%emt 0:00:40]} Ke6 {[%emt 0:06:02]} 30. Rh1 {[%emt 0:02:45]} Rc8 {[%emt 0:10:15]} 31. Rc1 {[%emt 0:06:12]} b5 {[%emt 0:00:50]} 32. a4 {[%emt 0:02:00] The position is equal.} bxa4 {[%emt 0:01:16]} 33. Ra1 {[%emt 0:00:47]} Rc4 {[%emt 0:00:53]} 34. Kd3 {[%emt 0:00:31]} Kd5 {[%emt 0:03:23]} 35. b4 {[%emt 0:00:01]} axb3 {[%emt 0:01:11]} 36. Ra5+ {[%emt 0:00:47]} Rc5 {[%emt 0:01:18]} 37. c4+ {[%emt 0:00:33]} Kd6 {[%emt 0:05:46]} 38. Rxa6+ {[%emt 0:00:01]} Kc7 {[%emt 0:00:11]} 39. Ra7+ {[%emt 0:01:56]} Kb6 {[%emt 0:00:02]} 40. Ra3 {[%emt 0:00:26]} Ra5 {[%emt 0:00:56]} 41. Rxb3+ {[%emt 0:00:26]} Kc6 {[%emt 0:00:15]} 42. Ne4 {[%emt 0:01:16] Black must now prevent Nxg5.} Nxe4 {[%emt 0:03:39]} 43. Kxe4 {[%emt 0:00:04] KR-KR} Ra4 {[%emt 0:00:11]} 44. Rc3 {[%emt 0:03:39]} Kc5 {[%emt 0:00:36]} 45. Kf5 {[%emt 0:00:05]} Rxc4 {[%emt 0:00:17]} 46. Rxc4+ {[%emt 0:00:15]} Kxc4 {[%emt 0:00:09] K3P-KPP} 47. Kg6 {[%emt 0:00:01]} Kd3 {[%emt 0:00:09]} 48. Kxg7 {[%emt 0:00:01]} Kxe3 {[%emt 0:00:08]} 49. Kxf6 {[%emt 0:00:04] KP-KP} e4 {[%emt 0:00:08]} 50. g5 {[%emt 0:00:03] [#] White wants to mate with g6.} Kf3 {[%emt 0:00:12]} (50... Kf4 $5) 51. g6 {[%emt 0:00:02] Threatening mate with g7.} e3 {[%emt 0:00:05]} 52. g7 {[%emt 0:00:03]} e2 {[%emt 0:00:04]} 53. g8=Q {[%emt 0:00:03]} e1=Q {[%emt 0:00:06] Against Qg1} 54. Qd5+ {[%emt 0:00:02]} Qe4 {[%emt 0:00:08]} 55. Qxe4+ {[%emt 0:00:02]} Kxe4 {[%emt 0:00:04] An even fight not without its subleties.   Weighted Error Value: White=0.04 (flawless) /Black=0.04 (flawless) .  Inaccurate:     	White=1     	Black=1      OK:         	White=25    	Black=19     Best:        	White=4     	Black=2} 1/2-1/2